[Event "EYCC Girls U14 2018"]
[Site "Riga"]
[Date "2018.08.20"]
[Round "1"]
[White "Garifullina, Leya"]
[Black "Czarnecka, Lidia"]
[Result "1-0"]
[ECO "B28"]
[WhiteElo "2106"]
[BlackElo "1753"]
[Annotator "NA"]
[PlyCount "59"]
[EventDate "2018.08.20"]
[EventType "swiss"]
[EventCountry "LAT"]
[SourceTitle "playchess.com"]
[Source "ChessBase"]
[SourceQuality "1"]
[TimeControl "40/5400+30:1800+30"]

1. e4 {[%emt 0:00:00]} c5 {[%emt 0:00:00]} 2. Nf3 {[%emt 0:00:30]} a6 {[%emt 0:00:59]} 3. c3 {[%emt 0:01:25]} Nf6 {[%emt 0:01:22]} 4. e5 {[%emt 0:01:38]} Nd5 {[%emt 0:00:44]} 5. d4 {[%emt 0:01:28]} e6 {[%emt 0:01:03]} 6. dxc5 {[%emt 0:04:23]} Bxc5 {[%emt 0:01:01]} 7. Bc4 {[%emt 0:03:10]} Nb6 {[%emt 0:11:47]} 8. Bd3 {[%emt 0:01:20]} d5 {[%emt 0:01:16]} 9. exd6 $14 {[%emt 0:03:48]} Bxd6 {[%emt 0:01:16]} 10. O-O {[%emt 0:05:43]} N8d7 {[%emt 0:04:10]} 11. Qe2 {[%emt 0:04:54]} Nd5 {[%emt 0:05:42]} 12. Bc2 {[%emt 0:06:07]} Qc7 {[%emt 0:03:30]} 13. Rd1 {[%emt 0:02:29]} N7f6 {[%emt 0:01:34]} 14. Nbd2 {[%emt 0:05:33]} Bd7 {[%emt 0:05:27]} 15. Nc4 {[%emt 0:02:17]} Be7 {[%emt 0:01:09]} 16. Nce5 {[%emt 0:01:17]} Rc8 {[%emt 0:04:35]} 17. Nxd7 {[%emt 0:03:01]} Nxd7 {[%emt 0:00:51]} 18. Bb3 {[%emt 0:10:12]} N5f6 {[%emt 0:03:46]} 19. Bg5 {[%emt 0:03:06]} Nc5 {[%emt 0:04:19]} 20. Bc2 {[%emt 0:01:07]} h6 {[%emt 0:01:54]} 21. Bh4 {[%emt 0:01:14]} O-O {[%emt 0:00:55]} 22. Ne5 {[%emt 0:04:22]} Rfd8 {[%emt 0:00:47]} 23. Bg3 {[%emt 0:01:08]} Qb6 {[%emt 0:01:23]} 24. a4 {[%emt 0:05:37]} Ncd7 {[%emt 0:03:08]} 25. a5 {[%emt 0:03:01]} Qc5 {[%emt 0:01:02]} 26. Nxd7 {[%emt 0:00:31]} Rxd7 {[%emt 0:02:15]} 27. Rxd7 {[%emt 0:00:06]} Nxd7 {[%emt 0:00:09]} 28. Qe4 {[%emt 0:00:39]} Nf6 {[%emt 0:02:03]} 29. Qxb7 {[%emt 0:00:33]} Qc6 {[%emt 0:01:10]} 30. Qxe7 {[%emt 0:00:11]} 1-0

[Event "EYCC Girls U14 2018"]
[Site "Riga"]
[Date "2018.08.20"]
[Round "1"]
[White "Dylag, Emilia"]
[Black "Heutling, Elina"]
[Result "1-0"]
[ECO "A45"]
[WhiteElo "2095"]
[BlackElo "1728"]
[Annotator "NA"]
[PlyCount "75"]
[EventDate "2018.08.20"]
[EventType "swiss"]
[EventCountry "LAT"]
[SourceTitle "playchess.com"]
[Source "ChessBase"]
[SourceQuality "1"]
[TimeControl "40/5400+30:1800+30"]

1. d4 {[%emt 0:00:00]} Nf6 {[%emt 0:00:00]} 2. Nc3 {[%emt 0:00:00]} d5 {[%emt 0:00:32]} 3. Bf4 {[%emt 0:00:20]} g6 {[%emt 0:00:59]} 4. e3 {[%emt 0:02:57]} Bg7 {[%emt 0:01:09]} 5. h4 {[%emt 0:02:23]} c5 {[%emt 0:03:06]} 6. Be2 {[%emt 0:08:22]} h5 $11 {[%emt 0:08:28]} 7. Nb5 {[%emt 0:10:02]} Na6 {[%emt 0:03:05]} 8. Nf3 {[%emt 0:03:07]} c4 {[%emt 0:08:34]} 9. O-O {[%emt 0:09:32]} Bd7 {[%emt 0:03:58]} 10. a4 {[%emt 0:07:55]} Qb6 {[%emt 0:07:34]} 11. b3 {[%emt 0:04:35]} cxb3 {[%emt 0:11:48]} 12. c4 {[%emt 0:06:35]} dxc4 {[%emt 0:11:38]} 13. Bxc4 {[%emt 0:00:31]} O-O {[%emt 0:01:57]} 14. Qxb3 {[%emt 0:01:12]} e6 {[%emt 0:05:20]} 15. a5 {[%emt 0:02:34]} Qd8 {[%emt 0:06:01]} 16. Nd6 {[%emt 0:03:38]} Nc7 {[%emt 0:03:56]} 17. Nxb7 {[%emt 0:01:58]} Qc8 {[%emt 0:01:45]} 18. Rfc1 {[%emt 0:06:15]} Bc6 {[%emt 0:03:58]} 19. a6 {[%emt 0:06:06]} Rb8 {[%emt 0:04:33]} 20. Bxc7 {[%emt 0:01:10]} Qxc7 {[%emt 0:00:32]} 21. Bxe6 {[%emt 0:05:10]} fxe6 {[%emt 0:05:15]} 22. Qxe6+ {[%emt 0:00:09]} Kh8 {[%emt 0:00:21]} 23. Rxc6 {[%emt 0:01:14]} Qf7 {[%emt 0:00:40]} 24. Qxf7 {[%emt 0:00:09]} Rxf7 {[%emt 0:00:08]} 25. Ne5 {[%emt 0:00:09]} Rfxb7 {[%emt 0:02:39]} 26. axb7 {[%emt 0:00:17]} Rxb7 {[%emt 0:00:18]} 27. Nxg6+ {[%emt 0:00:16]} Kh7 {[%emt 0:00:10]} 28. Nf4 {[%emt 0:00:29]} Kh6 {[%emt 0:01:58]} 29. Nd5 {[%emt 0:00:35]} Kg6 {[%emt 0:00:31]} 30. Nxf6 {[%emt 0:01:02]} Bxf6 {[%emt 0:00:03]} 31. Raa6 {[%emt 0:00:36]} Rf7 {[%emt 0:00:21]} 32. Kf1 {[%emt 0:01:04]} Kg7 {[%emt 0:00:16]} 33. Rxf6 {[%emt 0:01:24]} Rxf6 {[%emt 0:00:03]} 34. Rxf6 {[%emt 0:00:21]} Kxf6 {[%emt 0:00:07]} 35. Ke2 {[%emt 0:00:03]} a5 {[%emt 0:00:14]} 36. Kd3 {[%emt 0:00:05]} Ke6 {[%emt 0:00:04]} 37. Kc4 {[%emt 0:00:05]} a4 {[%emt 0:00:13]} 38. Kb4 {[%emt 0:00:03]} 1-0

[Event "EYCC Girls U14 2018"]
[Site "Riga"]
[Date "2018.08.20"]
[Round "1"]
[White "Krasteva, Beloslava"]
[Black "Moskaleva, Arina"]
[Result "1-0"]
[ECO "D20"]
[WhiteElo "2086"]
[BlackElo "1723"]
[Annotator "NA"]
[PlyCount "91"]
[EventDate "2018.08.20"]
[EventType "swiss"]
[EventCountry "LAT"]
[SourceTitle "playchess.com"]
[Source "ChessBase"]
[SourceQuality "1"]
[TimeControl "40/5400+30:1800+30"]

1. d4 {[%emt 0:00:00]} d5 {[%emt 0:00:00]} 2. c4 {[%emt 0:00:00]} dxc4 {[%emt 0:00:24]} 3. e3 {[%emt 0:00:26]} Nf6 {[%emt 0:03:41]} 4. Bxc4 {[%emt 0:01:32]} e6 {[%emt 0:00:48]} 5. Nf3 {[%emt 0:01:32]} Be7 {[%emt 0:05:47]} 6. Nc3 {[%emt 0:02:07]} c6 {[%emt 0:02:22]} 7. O-O {[%emt 0:02:17]} O-O {[%emt 0:02:10]} 8. a4 {[%emt 0:08:50]} a5 {[%emt 0:02:32]} 9. Qe2 {[%emt 0:03:25]} Nbd7 {[%emt 0:05:15]} 10. e4 {[%emt 0:01:52]} Nb6 {[%emt 0:03:16]} 11. Bb3 {[%emt 0:03:39]} Re8 {[%emt 0:05:05]} 12. Bf4 {[%emt 0:04:24]} Bd7 {[%emt 0:03:16]} 13. Rac1 {[%emt 0:03:28]} Rc8 {[%emt 0:01:22]} 14. Rfd1 {[%emt 0:01:36]} h6 {[%emt 0:08:46]} 15. h3 {[%emt 0:09:25]} Bb4 {[%emt 0:08:03]} 16. Qd3 {[%emt 0:04:06]} Qe7 {[%emt 0:04:59]} 17. Bc2 {[%emt 0:03:09]} Nh7 {[%emt 0:00:47]} 18. e5 {[%emt 0:11:04]} Nf8 {[%emt 0:00:36]} 19. Ne4 {[%emt 0:01:21]} c5 {[%emt 0:04:54]} 20. Nd6 {[%emt 0:02:00]} c4 {[%emt 0:01:39]} 21. Nxc8 {[%emt 0:02:04]} Rxc8 {[%emt 0:00:44]} 22. Qe2 {[%emt 0:01:26]} Nxa4 {[%emt 0:00:18]} 23. Be4 {[%emt 0:01:31]} c3 {[%emt 0:01:41]} 24. b3 {[%emt 0:04:38]} Nb2 {[%emt 0:00:28]} 25. Re1 {[%emt 0:02:52]} Qe8 {[%emt 0:05:54]} 26. Bxb7 {[%emt 0:03:26]} Bb5 {[%emt 0:02:29]} 27. Qe3 {[%emt 0:00:14]} Rc7 {[%emt 0:07:13]} 28. Be4 {[%emt 0:00:17]} c2 {[%emt 0:01:23]} 29. Rxc2 {[%emt 0:02:11]} Rxc2 {[%emt 0:00:06]} 30. Bxc2 {[%emt 0:00:06]} Bxe1 {[%emt 0:00:04]} 31. Nxe1 {[%emt 0:01:22]} a4 {[%emt 0:00:36]} 32. Qc3 {[%emt 0:02:16]} axb3 {[%emt 0:00:46]} 33. Bxb3 {[%emt 0:00:50]} Na4 {[%emt 0:00:50]} 34. Qc7 {[%emt 0:03:11]} Qa8 {[%emt 0:03:48]} 35. Qc2 {[%emt 0:03:14]} Bc6 {[%emt 0:03:24]} 36. Bd2 {[%emt 0:01:37]} Nb6 {[%emt 0:00:36]} 37. Qa2 {[%emt 0:03:07]} Qb7 {[%emt 0:00:35]} 38. f3 {[%emt 0:01:15]} Nd5 {[%emt 0:00:29]} 39. Nd3 {[%emt 0:00:55]} Qb6 {[%emt 0:03:28]} 40. Qb2 {[%emt 0:00:00]} Qa6 {[%emt 0:00:00]} 41. Bc2 {[%emt 0:02:59]} Qa7 {[%emt 0:08:20]} 42. Kh2 {[%emt 0:03:32]} Ng6 {[%emt 0:03:43]} 43. Nc5 {[%emt 0:01:25]} Nxe5 {[%emt 0:05:06]} 44. dxe5 {[%emt 0:00:21]} Qxc5 {[%emt 0:00:08]} 45. Qb8+ {[%emt 0:00:05]} Qf8 {[%emt 0:00:04]} 46. Bh7+ {[%emt 0:00:11]} 1-0

[Event "EYCC Girls U14 2018"]
[Site "Riga"]
[Date "2018.08.20"]
[Round "1"]
[White "Lehaci, Miruna-Daria"]
[Black "Murzina, Agata"]
[Result "0-1"]
[ECO "C11"]
[WhiteElo "2055"]
[BlackElo "1716"]
[Annotator "NA"]
[PlyCount "120"]
[EventDate "2018.08.20"]
[EventType "swiss"]
[EventCountry "LAT"]
[SourceTitle "playchess.com"]
[Source "ChessBase"]
[SourceQuality "1"]
[TimeControl "40/5400+30:1800+30"]

1. e4 {[%emt 0:00:00]} e6 {[%emt 0:00:00]} 2. d4 {[%emt 0:00:00]} d5 {[%emt 0:00:00]} 3. Nc3 {[%emt 0:00:00]} Nf6 {[%emt 0:03:23]} 4. e5 {[%emt 0:02:19]} Nfd7 $1 {[%emt 0:00:09]} 5. f4 {[%emt 0:00:20]} c5 {[%emt 0:03:50]} 6. Nf3 {[%emt 0:00:07]} Nc6 {[%emt 0:01:19]} 7. Be3 {[%emt 0:00:39]} a6 {[%emt 0:11:32]} 8. Qd2 {[%emt 0:01:08]} b5 $11 {[%emt 0:03:24] LiveBook: 1726 Partien} 9. a3 {[%emt 0:01:00]} Rb8 {[%emt 0:04:46]} 10. Be2 {[%emt 0:03:59]} Be7 {[%emt 0:01:25]} 11. O-O {[%emt 0:01:00]} O-O {[%emt 0:02:23]} 12. dxc5 {[%emt 0:09:51]} Bxc5 {[%emt 0:04:58]} 13. Bxc5 {[%emt 0:01:59]} Nxc5 {[%emt 0:00:08]} 14. Rad1 {[%emt 0:07:55]} b4 {[%emt 0:09:49]} 15. axb4 {[%emt 0:03:42]} Rxb4 {[%emt 0:01:37]} 16. b3 {[%emt 0:01:41]} f6 {[%emt 0:05:25]} 17. Kh1 {[%emt 0:07:05]} fxe5 {[%emt 0:08:21]} 18. Nxe5 {[%emt 0:02:04]} Nxe5 {[%emt 0:00:48]} 19. fxe5 {[%emt 0:00:05]} Rh4 {[%emt 0:02:21]} 20. Rxf8+ {[%emt 0:02:32]} Qxf8 {[%emt 0:02:36]} 21. Qg5 {[%emt 0:02:58]} Rf4 {[%emt 0:00:26]} 22. Bf3 {[%emt 0:08:32]} Nd7 {[%emt 0:07:48]} 23. Re1 {[%emt 0:07:03]} Rxf3 {[%emt 0:03:08]} 24. gxf3 {[%emt 0:00:07]} Qxf3+ {[%emt 0:00:02]} 25. Kg1 {[%emt 0:00:51]} Qxc3 {[%emt 0:00:10]} 26. Rf1 {[%emt 0:01:34]} Qc5+ {[%emt 0:00:25]} 27. Rf2 {[%emt 0:00:52]} h6 {[%emt 0:01:00]} 28. Qh5 {[%emt 0:03:55]} Kh7 {[%emt 0:00:39]} 29. Kf1 {[%emt 0:07:46]} Qb5+ {[%emt 0:01:09]} 30. Ke1 {[%emt 0:01:16]} d4 {[%emt 0:01:49]} 31. Re2 {[%emt 0:00:56]} Bb7 {[%emt 0:01:37]} 32. Kf2 {[%emt 0:05:51]} d3 {[%emt 0:02:10]} 33. cxd3 {[%emt 0:01:12]} Qxd3 {[%emt 0:00:08]} 34. Qf7 {[%emt 0:02:47]} Qf5+ {[%emt 0:07:41]} 35. Qxf5+ {[%emt 0:00:22]} exf5 {[%emt 0:00:05]} 36. e6 {[%emt 0:00:29]} Nf6 {[%emt 0:00:04]} 37. e7 {[%emt 0:01:14]} Bc6 {[%emt 0:00:34]} 38. Kg3 {[%emt 0:02:41]} Kg6 {[%emt 0:01:20]} 39. Kf4 {[%emt 0:01:05]} Be4 {[%emt 0:06:45]} 40. Ra2 {[%emt 0:00:00]} Kf7 {[%emt 0:00:00]} 41. Rxa6 {[%emt 0:03:15]} Kxe7 {[%emt 0:02:38]} 42. Ra7+ {[%emt 0:00:30]} Ke6 {[%emt 0:00:23]} 43. Kg3 {[%emt 0:01:55]} Ke5 {[%emt 0:00:55]} 44. h3 {[%emt 0:02:10]} Kd4 {[%emt 0:00:15]} 45. Kf2 {[%emt 0:01:03]} Nh5 {[%emt 0:00:40]} 46. Rc7 {[%emt 0:01:24]} f4 {[%emt 0:00:54]} 47. Rc4+ {[%emt 0:02:48]} Kd3 {[%emt 0:00:15]} 48. Rc7 {[%emt 0:01:42]} g5 {[%emt 0:02:51]} 49. b4 {[%emt 0:02:44]} Nf6 {[%emt 0:00:56]} 50. Rf7 {[%emt 0:04:51]} Nd5 {[%emt 0:00:28]} 51. b5 {[%emt 0:00:34]} Kc4 {[%emt 0:00:12]} 52. b6 {[%emt 0:02:55]} Nxb6 {[%emt 0:00:06]} 53. Rf6 {[%emt 0:00:03]} Nd5 {[%emt 0:00:11]} 54. Rxh6 {[%emt 0:00:04]} Nc3 {[%emt 0:00:12]} 55. Rh5 {[%emt 0:01:54]} f3 {[%emt 0:03:40]} 56. Ke1 {[%emt 0:02:24]} Nd1 {[%emt 0:06:30]} 57. Kxd1 {[%emt 0:01:38]} f2 {[%emt 0:00:05]} 58. Ke2 {[%emt 0:00:23]} Bf3+ {[%emt 0:00:32]} 59. Kxf3 {[%emt 0:00:20]} f1=Q+ {[%emt 0:00:06]} 60. Kg4 {[%emt 0:00:05]} Qf4# {[%emt 0:00:09]} 0-1

[Event "EYCC Girls U14 2018"]
[Site "Riga"]
[Date "2018.08.20"]
[Round "1"]
[White "Allahverdiyeva, Ayan"]
[Black "Mikhailina, Elena"]
[Result "1-0"]
[ECO "B33"]
[WhiteElo "2046"]
[BlackElo "1704"]
[Annotator "NA"]
[PlyCount "153"]
[EventDate "2018.08.20"]
[EventType "swiss"]
[EventCountry "LAT"]
[SourceTitle "playchess.com"]
[Source "ChessBase"]
[SourceQuality "1"]
[TimeControl "40/5400+30:1800+30"]

1. e4 {[%emt 0:01:00]} c5 {[%emt 0:00:00]} 2. Nf3 {[%emt 0:06:48]} Nc6 {[%emt 0:00:00]} 3. d4 {[%emt 0:00:03]} cxd4 {[%emt 0:00:00]} 4. Nxd4 {[%emt 0:00:03]} Nf6 {[%emt 0:00:00]} 5. Nc3 {[%emt 0:00:03]} e6 {[%emt 0:00:00]} 6. Bc4 {[%emt 0:00:18]} Bb4 {[%emt 0:00:30]} 7. Nxc6 {[%emt 0:04:36]} bxc6 {[%emt 0:00:12]} 8. e5 {[%emt 0:06:41]} Qa5 {[%emt 0:27:18]} 9. Qd4 {[%emt 0:39:06]} Ne4 {[%emt 0:16:19]} 10. Qxe4 {[%emt 0:00:42]} Bxc3+ {[%emt 0:00:05]} 11. bxc3 {[%emt 0:00:03]} Qxc3+ {[%emt 0:00:08]} 12. Ke2 {[%emt 0:00:01]} Qxa1 {[%emt 0:00:08]} 13. Ba3 {[%emt 0:00:58]} Qc3 {[%emt 0:09:07]} 14. Bd6 {[%emt 0:01:27]} f5 {[%emt 0:08:26]} 15. Qd3 {[%emt 0:04:34]} Qxd3+ {[%emt 0:00:28]} 16. Kxd3 {[%emt 0:00:08]} Kf7 {[%emt 0:01:52]} 17. Rb1 {[%emt 0:00:20]} a5 {[%emt 0:01:08]} 18. a4 {[%emt 0:04:48]} Ba6 {[%emt 0:01:17]} 19. Bxa6 {[%emt 0:00:47]} Rxa6 {[%emt 0:00:04]} 20. Rb7 {[%emt 0:00:35]} Rd8 {[%emt 0:01:50]} 21. Kc4 {[%emt 0:00:19]} Ke8 {[%emt 0:03:19]} 22. Kc5 {[%emt 0:05:47]} Rda8 {[%emt 0:01:23]} 23. c4 {[%emt 0:05:39]} g5 {[%emt 0:02:02]} 24. Rb3 {[%emt 0:01:14]} Kf7 {[%emt 0:00:59]} 25. Rb7 {[%emt 0:00:13]} Ke8 {[%emt 0:06:36]} 26. Rb3 {[%emt 0:00:22]} Kf7 {[%emt 0:08:43]} 27. Bc7 {[%emt 0:01:56]} R6a7 {[%emt 0:03:05]} 28. Bb8 {[%emt 0:01:49]} Ra6 {[%emt 0:03:20]} 29. Kd6 {[%emt 0:00:09]} Ke8 {[%emt 0:00:15]} 30. Kc7 {[%emt 0:00:19]} c5 {[%emt 0:03:07]} 31. Kb7 {[%emt 0:00:23]} Rxb8+ {[%emt 0:01:11]} 32. Kxb8 {[%emt 0:00:11]} Kd8 {[%emt 0:01:08]} 33. Kb7 {[%emt 0:00:20]} Rc6 {[%emt 0:00:06]} 34. Rb6 {[%emt 0:02:35]} Rc8 {[%emt 0:01:01]} 35. Ra6 {[%emt 0:09:01]} Rc7+ {[%emt 0:00:14]} 36. Kb6 {[%emt 0:00:12]} Rc8 {[%emt 0:01:19]} 37. Ra7 {[%emt 0:02:34]} h5 {[%emt 0:00:32]} 38. Rb7 {[%emt 0:00:17]} h4 {[%emt 0:01:11]} 39. Kxa5 {[%emt 0:01:07]} Ra8+ {[%emt 0:00:20]} 40. Kb5 {[%emt 0:00:00]} Kc8 {[%emt 0:00:00]} 41. Rb6 {[%emt 0:00:36]} Kc7 {[%emt 0:00:37]} 42. a5 {[%emt 0:05:43]} f4 {[%emt 0:03:36]} 43. g4 {[%emt 0:03:29]} fxg3 {[%emt 0:00:14]} 44. fxg3 {[%emt 0:00:13]} hxg3 {[%emt 0:00:06]} 45. hxg3 {[%emt 0:00:05]} Rf8 {[%emt 0:03:06]} 46. a6 {[%emt 0:07:26]} Rf1 {[%emt 0:00:07]} 47. Kxc5 {[%emt 0:02:38]} Re1 {[%emt 0:00:47]} 48. Rb7+ {[%emt 0:00:40]} Kc8 {[%emt 0:00:04]} 49. Kb6 {[%emt 0:00:37]} Rb1+ {[%emt 0:00:21]} 50. Ka7 {[%emt 0:00:27]} Rc1 {[%emt 0:02:04]} 51. Rb8+ {[%emt 0:06:28]} Kc7 {[%emt 0:00:04]} 52. Rg8 {[%emt 0:00:38]} Rxc4 {[%emt 0:00:38]} 53. Rxg5 {[%emt 0:00:04]} Re4 {[%emt 0:00:31]} 54. Rh5 {[%emt 0:03:32]} Rg4 {[%emt 0:02:24]} 55. Rh4 {[%emt 0:00:25]} Rxg3 {[%emt 0:02:56]} 56. Rc4+ {[%emt 0:00:04]} Kd8 {[%emt 0:00:05]} 57. Kb6 {[%emt 0:00:14]} d5 {[%emt 0:10:40]} 58. a7 {[%emt 0:02:20]} Rb3+ {[%emt 0:03:21]} 59. Ka5 {[%emt 0:00:05]} dxc4 {[%emt 0:00:11]} 60. a8=Q+ {[%emt 0:00:07]} Kc7 {[%emt 0:00:17]} 61. Qe4 {[%emt 0:01:04]} Rc3 {[%emt 0:01:14]} 62. Qd4 {[%emt 0:00:48]} Rc1 {[%emt 0:00:57]} 63. Qd6+ {[%emt 0:00:07]} Kb7 {[%emt 0:00:29]} 64. Qd7+ {[%emt 0:00:18]} Kb8 {[%emt 0:00:28]} 65. Qxe6 {[%emt 0:00:05]} c3 {[%emt 0:00:40]} 66. Kb4 {[%emt 0:02:03]} Kb7 {[%emt 0:01:56]} 67. Kb3 {[%emt 0:00:36]} Kc7 {[%emt 0:00:32]} 68. Qd6+ {[%emt 0:00:02]} Kc8 {[%emt 0:00:18]} 69. e6 {[%emt 0:00:02]} Rb1+ {[%emt 0:01:02]} 70. Kxc3 {[%emt 0:00:04]} Rb6 {[%emt 0:00:08]} 71. Qd7+ {[%emt 0:00:06]} Kb8 {[%emt 0:00:04]} 72. e7 {[%emt 0:00:05]} Rc6+ {[%emt 0:00:10]} 73. Qxc6 {[%emt 0:00:05]} Ka7 {[%emt 0:00:02]} 74. Qc7+ {[%emt 0:00:09]} Ka6 {[%emt 0:00:03]} 75. Qb8 {[%emt 0:00:13]} Ka5 {[%emt 0:00:04]} 76. Qa7+ {[%emt 0:00:02]} Kb5 {[%emt 0:00:06]} 77. e8=Q# {[%emt 0:00:03]} 1-0

[Event "EYCC Girls U14 2018"]
[Site "Riga"]
[Date "2018.08.20"]
[Round "1"]
[White "Ruzic, Pia Marie"]
[Black "Stepanyan, Eva"]
[Result "0-1"]
[ECO "A29"]
[WhiteElo "1748"]
[BlackElo "2101"]
[Annotator "NA"]
[PlyCount "74"]
[EventDate "2018.08.20"]
[EventType "swiss"]
[EventCountry "LAT"]
[SourceTitle "playchess.com"]
[Source "ChessBase"]
[SourceQuality "1"]
[TimeControl "40/5400+30:1800+30"]

1. c4 {[%emt 0:00:00]} e5 {[%emt 0:00:00]} 2. Nc3 {[%emt 0:00:06]} Nf6 {[%emt 0:00:02]} 3. Nf3 {[%emt 0:00:59]} Nc6 {[%emt 0:00:07]} 4. g3 {[%emt 0:00:52]} Bc5 {[%emt 0:00:27]} 5. Bg2 {[%emt 0:01:09]} O-O {[%emt 0:00:18]} 6. O-O {[%emt 0:01:07]} d6 {[%emt 0:00:22]} 7. d3 {[%emt 0:02:15]} h6 {[%emt 0:00:17]} 8. a3 {[%emt 0:01:55] LiveBook: 198 Games} a5 {[%emt 0:00:06]} 9. Rb1 {[%emt 0:01:10]} Re8 {[%emt 0:00:10]} 10. Nd2 {[%emt 0:03:43]} Bg4 {[%emt 0:14:12]} 11. Na4 $15 {[%emt 0:07:02]} (11. h3 $5 {[%cal Rh3g4]} Be6 12. g4 $11) 11... Nd4 {[%emt 0:05:43]} 12. Nf3 {[%emt 0:01:04]} Nxf3+ {[%emt 0:00:56]} 13. exf3 {[%emt 0:00:36]} Bf5 {[%emt 0:00:55]} 14. Be3 {[%emt 0:04:46]} Bd4 {[%emt 0:04:41]} 15. f4 {[%emt 0:03:51]} c6 {[%emt 0:07:27]} 16. h3 {[%emt 0:02:40]} Rc8 {[%emt 0:08:06]} 17. g4 {[%emt 0:04:07]} Bh7 {[%emt 0:05:04]} 18. f5 {[%emt 0:05:17]} b5 {[%emt 0:08:16]} 19. Nc3 {[%emt 0:03:19]} Qb6 {[%emt 0:02:25]} 20. g5 {[%emt 0:04:21]} Bxe3 {[%emt 0:05:19]} 21. gxf6 {[%emt 0:00:11]} Bg5 {[%emt 0:03:01]} 22. cxb5 {[%emt 0:04:40]} cxb5 {[%emt 0:03:19]} 23. Nd5 {[%emt 0:00:17]} Qd8 {[%emt 0:00:14]} 24. Ne7+ {[%emt 0:00:33]} Rxe7 {[%emt 0:00:11]} 25. fxe7 {[%emt 0:00:06]} Qxe7 {[%emt 0:00:03]} 26. Qg4 {[%emt 0:00:53]} Qd7 {[%emt 0:02:00]} 27. Be4 {[%emt 0:12:09]} d5 {[%emt 0:01:47]} 28. Bg2 {[%emt 0:07:31]} Bxf5 {[%emt 0:00:14]} 29. Qf3 {[%emt 0:01:55]} e4 {[%emt 0:01:14]} 30. Qg3 {[%emt 0:02:36]} exd3 {[%emt 0:00:16]} 31. h4 {[%emt 0:04:47]} Bf6 {[%emt 0:00:23]} 32. b4 {[%emt 0:01:46]} d2 {[%emt 0:02:15]} 33. Rbd1 {[%emt 0:02:08]} Bc3 {[%emt 0:00:31]} 34. Qf4 {[%emt 0:03:31]} axb4 {[%emt 0:02:14]} 35. axb4 {[%emt 0:00:16]} Rc4 {[%emt 0:00:37]} 36. Qe3 {[%emt 0:02:35]} d4 {[%emt 0:02:31]} 37. Qf4 {[%emt 0:02:30]} d3 {[%emt 0:03:22]} 0-1

[Event "EYCC Girls U14 2018"]
[Site "Riga"]
[Date "2018.08.20"]
[Round "1"]
[White "Karavitaki, Evaggelia"]
[Black "Loskutova, Viktoriya"]
[Result "1-0"]
[ECO "B27"]
[WhiteElo "1727"]
[BlackElo "2088"]
[Annotator "NA"]
[PlyCount "101"]
[EventDate "2018.08.20"]
[EventType "swiss"]
[EventCountry "LAT"]
[SourceTitle "playchess.com"]
[Source "ChessBase"]
[SourceQuality "1"]
[TimeControl "40/5400+30:1800+30"]

1. e4 {[%emt 0:00:00]} c5 {[%emt 0:00:00]} 2. Nf3 {[%emt 0:00:00]} g6 {[%emt 0:00:00]} 3. d4 {[%emt 0:00:00]} cxd4 {[%emt 0:00:00]} 4. Nxd4 {[%emt 0:00:03]} Bg7 {[%emt 0:00:00]} 5. Nc3 {[%emt 0:00:16]} Nc6 {[%emt 0:00:00]} 6. Be3 {[%emt 0:00:07]} Nf6 {[%emt 0:00:00]} 7. Nxc6 {[%emt 0:00:15]} bxc6 {[%emt 0:00:03]} 8. e5 {[%emt 0:00:10]} Ng8 {[%emt 0:00:03]} 9. Bd4 {[%emt 0:00:14]} Qa5 {[%emt 0:01:29]} 10. f4 {[%emt 0:00:25]} f6 {[%emt 0:01:00]} 11. Qd2 {[%emt 0:00:29]} fxe5 {[%emt 0:00:13]} 12. fxe5 {[%emt 0:00:09]} c5 {[%emt 0:00:22]} 13. Bf2 {[%emt 0:20:15]} Bxe5 {[%emt 0:00:27]} 14. Bc4 {[%emt 0:25:07]} Nf6 {[%emt 0:00:24]} 15. O-O {[%emt 0:01:08]} Ba6 {[%emt 0:00:44]} 16. Bxa6 {[%emt 0:01:56]} Qxa6 {[%emt 0:00:04]} 17. Rfe1 {[%emt 0:00:38]} d6 {[%emt 0:04:16]} 18. Bh4 {[%emt 0:15:08]} O-O {[%emt 0:05:41]} 19. Nd5 {[%emt 0:02:53]} Qb7 {[%emt 0:00:13]} 20. Bxf6 {[%emt 0:01:25]} Bxf6 {[%emt 0:01:02]} 21. c3 {[%emt 0:00:41]} Rae8 {[%emt 0:09:08]} 22. Rad1 {[%emt 0:05:52]} Be5 {[%emt 0:14:22]} 23. Ne3 {[%emt 0:07:25]} Kg7 {[%emt 0:13:44]} 24. Nc4 {[%emt 0:05:59]} Bf6 {[%emt 0:01:05]} 25. Qd5 {[%emt 0:02:08]} Qxd5 {[%emt 0:10:48]} 26. Rxd5 {[%emt 0:00:13]} Rb8 {[%emt 0:05:10]} 27. Rd2 {[%emt 0:01:16]} Rfd8 {[%emt 0:01:19]} 28. Red1 {[%emt 0:00:42]} Rd7 {[%emt 0:01:48]} 29. Kf2 {[%emt 0:01:34]} Rf8 {[%emt 0:05:20]} 30. Ke2 {[%emt 0:00:40]} Rdd8 {[%emt 0:00:54]} 31. Rd5 {[%emt 0:02:55]} Rb8 {[%emt 0:02:46]} 32. Kd2 {[%emt 0:01:07]} Rf7 {[%emt 0:00:45]} 33. Kc2 {[%emt 0:00:38]} Bh4 {[%emt 0:02:48]} 34. g3 {[%emt 0:00:49]} Rf2+ {[%emt 0:00:06]} 35. R1d2 {[%emt 0:01:33]} Rxd2+ {[%emt 0:00:10]} 36. Nxd2 {[%emt 0:00:43]} Bf6 {[%emt 0:00:08]} 37. Ne4 {[%emt 0:00:16]} Rf8 {[%emt 0:03:18]} 38. Kb3 {[%emt 0:01:46]} Rb8+ {[%emt 0:00:30]} 39. Kc2 {[%emt 0:00:29]} Kf7 {[%emt 0:01:35]} 40. Rd2 {[%emt 0:00:00]} Ke6 {[%emt 0:00:00]} 41. Rf2 {[%emt 0:05:03]} Rc8 {[%emt 0:06:21]} 42. Re2 {[%emt 0:14:49]} Kf7 {[%emt 0:06:32]} 43. Rf2 {[%emt 0:01:32]} h6 {[%emt 0:01:03]} 44. Rxf6+ {[%emt 0:01:40]} exf6 {[%emt 0:08:24]} 45. Nxd6+ {[%emt 0:00:07]} Ke6 {[%emt 0:00:01]} 46. Nxc8 {[%emt 0:00:12]} a6 {[%emt 0:00:03]} 47. Kd3 {[%emt 0:01:49]} f5 {[%emt 0:01:15]} 48. Ke3 {[%emt 0:01:33]} g5 {[%emt 0:00:19]} 49. Nb6 {[%emt 0:01:56]} Kd6 {[%emt 0:00:13]} 50. Nc4+ {[%emt 0:00:37]} Kd5 {[%emt 0:00:03]} 51. b3 {[%emt 0:01:38]} 1-0